[Event "Late-Titled-Tuesday-Blitz-October-24-2023"]
[Site "Chess.com"]
[Date "2023.10.24"]
[Round "2"]
[White "Nyzhnyk_Illia"]
[Black "WPWPWP-2015"]
[Result "1/2-1/2"]
[WhiteElo "2836"]
[BlackElo "2581"]
[TimeControl "180+1"]
[EndTime "14:19:30 PDT"]
[Termination "Game drawn by agreement"]

1. d4 {[%clk 0:03:00.9]} 1... Nf6 {[%clk 0:02:59.5]} 2. c4 {[%clk 0:03:00.9]}
2... c6 {[%clk 0:02:58.7]} 3. Nf3 {[%clk 0:03:00.7]} 3... d5 {[%clk 0:02:58.7]}
4. e3 {[%clk 0:02:58.5]} 4... Bf5 {[%clk 0:02:56.9]} 5. Nc3 {[%clk 0:02:58.6]}
5... e6 {[%clk 0:02:56.7]} 6. Nh4 {[%clk 0:02:58.8]} 6... Bg6 {[%clk 0:02:56.3]}
7. Qb3 {[%clk 0:02:56.6]} 7... Qc7 {[%clk 0:02:54.6]} 8. Bd2 {[%clk 0:02:56.2]}
8... Nbd7 {[%clk 0:02:50.9]} 9. Nxg6 {[%clk 0:02:54.7]} 9... hxg6 {[%clk
0:02:50.4]} 10. g3 {[%clk 0:02:55.2]} 10... Be7 {[%clk 0:02:45.7]} 11. Bg2
{[%clk 0:02:55.4]} 11... O-O {[%clk 0:02:44]} 12. O-O {[%clk 0:02:53.3]} 12...
dxc4 {[%clk 0:02:42.5]} 13. Qxc4 {[%clk 0:02:53.5]} 13... e5 {[%clk 0:02:41.3]}
14. dxe5 {[%clk 0:02:53.5]} 14... Nxe5 {[%clk 0:02:40.6]} 15. Qe2 {[%clk
0:02:54.2]} 15... Rad8 {[%clk 0:02:37.5]} 16. Rfd1 {[%clk 0:02:53.2]} 16... Nd3
{[%clk 0:02:23.5]} 17. b3 {[%clk 0:02:51.2]} 17... Nb4 {[%clk 0:02:11.8]} 18.
Be1 {[%clk 0:02:46]} 18... Rxd1 {[%clk 0:02:02.4]} 19. Nxd1 {[%clk 0:02:44.5]}
19... Rd8 {[%clk 0:01:59.9]} 20. a3 {[%clk 0:02:44.5]} 20... Nd3 {[%clk
0:01:53.5]} 21. Bc3 {[%clk 0:02:45.1]} 21... Nc5 {[%clk 0:01:52.8]} 22. b4
{[%clk 0:02:45.4]} 22... Ne6 {[%clk 0:01:45]} 23. Rc1 {[%clk 0:02:35.6]} 23...
Nd5 {[%clk 0:01:39]} 24. Ba1 {[%clk 0:02:30.6]} 24... Qd7 {[%clk 0:01:19.5]} 25.
Nc3 {[%clk 0:02:29.2]} 25... Nxc3 {[%clk 0:01:17.5]} 26. Bxc3 {[%clk 0:02:30.1]}
26... Bf6 {[%clk 0:01:16.7]} 27. Bxf6 {[%clk 0:02:13.2]} 27... gxf6 {[%clk
0:01:16.5]} 28. a4 {[%clk 0:02:13.9]} 28... a6 {[%clk 0:01:13.1]} 29. b5 {[%clk
0:02:12.6]} 29... cxb5 {[%clk 0:01:09.8]} 30. axb5 {[%clk 0:02:13.5]} 30... Qxb5
{[%clk 0:01:05.6]} 31. Qxb5 {[%clk 0:02:13.4]} 31... axb5 {[%clk 0:01:05.9]} 32.
Rb1 {[%clk 0:02:14]} 32... Nc7 {[%clk 0:01:04.5]} 33. Bxb7 {[%clk 0:02:13.3]}
33... Rb8 {[%clk 0:01:04]} 34. Be4 {[%clk 0:02:07.6]} 34... f5 {[%clk
0:01:02.4]} 35. Bd3 {[%clk 0:02:06.6]} 35... b4 {[%clk 0:01:02.4]} 36. Kf1
{[%clk 0:02:04.1]} 36... Ne6 {[%clk 0:00:52.9]} 37. Ke2 {[%clk 0:02:02.9]} 37...
Nc5 {[%clk 0:00:52.1]} 38. Bc4 {[%clk 0:02:02.8]} 38... Ne4 {[%clk 0:00:52]} 39.
Rb2 {[%clk 0:02:01.2]} 39... Kg7 {[%clk 0:00:49.5]} 40. Bb3 {[%clk 0:01:54.6]}
40... g5 {[%clk 0:00:45.2]} 41. Kd3 {[%clk 0:01:51.4]} 41... g4 {[%clk 0:00:41]}
42. Kd4 {[%clk 0:01:51.3]} 42... Kg6 {[%clk 0:00:32.9]} 43. Bd5 {[%clk
0:01:47.2]} 43... Nf6 {[%clk 0:00:28.5]} 44. Bc6 {[%clk 0:01:45.4]} 44... Rh8
{[%clk 0:00:21.9]} 45. Rxb4 {[%clk 0:01:43.9]} 45... Rxh2 {[%clk 0:00:21.8]} 46.
Rb2 {[%clk 0:01:44.6]} 46... Rh8 {[%clk 0:00:21.7]} 47. Ke5 {[%clk 0:01:43.9]}
47... Kg5 {[%clk 0:00:20.3]} 48. Rb7 {[%clk 0:01:43.4]} 48... Rf8 {[%clk
0:00:16.4]} 49. Bg2 {[%clk 0:01:41.1]} 49... Re8+ {[%clk 0:00:15.8]} 50. Kd4
{[%clk 0:01:40]} 50... Kg6 {[%clk 0:00:15.6]} 51. Rb6 {[%clk 0:01:34.1]} 51...
Rd8+ {[%clk 0:00:15.7]} 52. Kc3 {[%clk 0:01:34.3]} 52... Rc8+ {[%clk 0:00:16.1]}
53. Kd2 {[%clk 0:01:34.9]} 53... Rd8+ {[%clk 0:00:16.5]} 54. Ke2 {[%clk
0:01:35.5]} 54... Rd7 {[%clk 0:00:15.2]} 55. Bb7 {[%clk 0:01:33.6]} 55... Re7
{[%clk 0:00:15.2]} 56. Bc8 {[%clk 0:01:33.4]} 56... Re5 {[%clk 0:00:14.1]} 57.
Ba6 {[%clk 0:01:31.5]} 57... Rc5 {[%clk 0:00:13.1]} 58. Kd3 {[%clk 0:01:31]}
58... Kg5 {[%clk 0:00:12.6]} 59. Rb7 {[%clk 0:01:29.8]} 59... Rd5+ {[%clk
0:00:11]} 60. Ke2 {[%clk 0:01:26.9]} 60... Rd7 {[%clk 0:00:10.8]} 61. Rb2 {[%clk
0:01:21.8]} 61... Ne4 {[%clk 0:00:10.5]} 62. Rc2 {[%clk 0:01:18.3]} 62... Rd6
{[%clk 0:00:09.8]} 63. Bd3 {[%clk 0:01:16.8]} 63... Nf6 {[%clk 0:00:08.6]} 64.
Rc5 {[%clk 0:01:16.3]} 64... Rd5 {[%clk 0:00:08.8]} 65. Rc7 {[%clk 0:01:16.6]}
65... Rd7 {[%clk 0:00:08.9]} 66. Rc8 {[%clk 0:01:15.4]} 66... Kg6 {[%clk
0:00:08.5]} 67. Rc5 {[%clk 0:01:15.2]} 67... Rd5 {[%clk 0:00:08.5]} 68. Rc6
{[%clk 0:01:15.2]} 68... Kg5 {[%clk 0:00:08.1]} 69. Rc7 {[%clk 0:01:14.8]} 69...
Rd7 {[%clk 0:00:07.9]} 70. Rc4 {[%clk 0:01:15.6]} 70... Rd6 {[%clk 0:00:06.8]}
71. Rf4 {[%clk 0:01:16.3]} 71... Rd5 {[%clk 0:00:06.8]} 72. Bc4 {[%clk
0:01:15.2]} 72... Rd7 {[%clk 0:00:06.1]} 73. Rd4 {[%clk 0:01:13.5]} 73... Rc7
{[%clk 0:00:05.7]} 74. Kd3 {[%clk 0:01:13.7]} 74... Kg6 {[%clk 0:00:05.5]} 75.
Rd6 {[%clk 0:01:13.5]} 75... Kg5 {[%clk 0:00:05.4]} 76. Kd4 {[%clk 0:01:13.7]}
76... Re7 {[%clk 0:00:05.3]} 77. Bd3 {[%clk 0:01:14]} 77... Ne4 {[%clk
0:00:05.1]} 78. Rd5 {[%clk 0:01:12.3]} 78... Kg6 {[%clk 0:00:03.7]} 79. Bc2
{[%clk 0:01:11.7]} 79... Kf6 {[%clk 0:00:04]} 1/2-1/2

[Event "Late-Titled-Tuesday-Blitz-October-24-2023"]
[Site "Chess.com"]
[Date "2023.10.24"]
[Round "2"]
[White "AsselLesbekova"]
[Black "Langua_Chess"]
[Result "1-0"]
[WhiteElo "2291"]
[BlackElo "2495"]
[TimeControl "180+1"]
[EndTime "14:19:33 PDT"]
[Termination "AsselLesbekova won by resignation"]

1. e4 {[%clk 0:02:58.2]} 1... e5 {[%clk 0:03:00.3]} 2. Nf3 {[%clk 0:02:57.4]}
2... Nc6 {[%clk 0:03:01]} 3. Nc3 {[%clk 0:02:51.8]} 3... Nf6 {[%clk 0:02:59.6]}
4. d4 {[%clk 0:02:50.9]} 4... exd4 {[%clk 0:02:57.5]} 5. Nxd4 {[%clk 0:02:51.8]}
5... Bb4 {[%clk 0:02:57.6]} 6. Nxc6 {[%clk 0:02:52]} 6... bxc6 {[%clk
0:02:58.5]} 7. Qd4 {[%clk 0:02:52]} 7... Qe7 {[%clk 0:02:51.4]} 8. f3 {[%clk
0:02:50.7]} 8... d5 {[%clk 0:02:48.9]} 9. Bg5 {[%clk 0:02:50.4]} 9... c5 {[%clk
0:02:16.1]} 10. Bb5+ {[%clk 0:02:48.8]} 10... Bd7 {[%clk 0:02:07.3]} 11. Bxd7+
{[%clk 0:02:47.2]} 11... Qxd7 {[%clk 0:02:07.6]} 12. Qe5+ {[%clk 0:02:41.5]}
12... Qe6 {[%clk 0:01:58]} 13. Bxf6 {[%clk 0:02:22.9]} 13... gxf6 {[%clk
0:01:58.5]} 14. Qxd5 {[%clk 0:02:22.3]} 14... Rd8 {[%clk 0:01:35.3]} 15. Qxe6+
{[%clk 0:02:17.1]} 15... fxe6 {[%clk 0:01:36.2]} 16. Ke2 {[%clk 0:02:16.7]}
16... Bxc3 {[%clk 0:01:18.2]} 17. bxc3 {[%clk 0:02:17.6]} 17... Ke7 {[%clk
0:01:18.5]} 18. Rhd1 {[%clk 0:02:16]} 18... Rb8 {[%clk 0:01:13]} 19. Rab1 {[%clk
0:02:14.9]} 19... Rb6 {[%clk 0:01:13.6]} 20. Rb3 {[%clk 0:02:05.7]} 20... h5
{[%clk 0:01:10.7]} 21. g3 {[%clk 0:02:00.5]} 21... h4 {[%clk 0:01:08.4]} 22. g4
{[%clk 0:01:59.3]} 22... Rhb8 {[%clk 0:00:56.2]} 23. Rdb1 {[%clk 0:01:53.2]}
23... c4 {[%clk 0:00:45.8]} 24. Rxb6 {[%clk 0:01:47.9]} 24... axb6 {[%clk
0:00:46.7]} 25. Rb5 {[%clk 0:01:47.9]} 25... Ra8 {[%clk 0:00:45.7]} 26. Rh5
{[%clk 0:01:37.6]} 26... Rxa2 {[%clk 0:00:45]} 27. Kd2 {[%clk 0:01:34.3]} 27...
Kd6 {[%clk 0:00:31.1]} 28. f4 {[%clk 0:01:24.7]} 28... Ra1 {[%clk 0:00:19.6]}
29. Rxh4 {[%clk 0:01:23.5]} 29... Rg1 {[%clk 0:00:20.3]} 30. h3 {[%clk
0:01:19.9]} 30... Rg2+ {[%clk 0:00:20.4]} 31. Kc1 {[%clk 0:01:19.7]} 31... b5
{[%clk 0:00:21.1]} 32. Rh6 {[%clk 0:01:13.4]} 32... Ke7 {[%clk 0:00:16.9]} 33.
Rh5 {[%clk 0:01:02.1]} 33... c6 {[%clk 0:00:16]} 34. e5 {[%clk 0:01:02.6]} 34...
fxe5 {[%clk 0:00:14.6]} 35. Rxe5 {[%clk 0:00:54]} 35... Kd6 {[%clk 0:00:14.7]}
36. Re3 {[%clk 0:00:35.6]} 36... Rf2 {[%clk 0:00:13.4]} 37. Re4 {[%clk
0:00:35.2]} 37... Rf3 {[%clk 0:00:13.3]} 38. h4 {[%clk 0:00:34.9]} 38... Rxc3
{[%clk 0:00:11.2]} 39. h5 {[%clk 0:00:34.9]} 39... Rh3 {[%clk 0:00:08.4]} 40.
Kb2 {[%clk 0:00:32]} 40... c5 {[%clk 0:00:05.3]} 41. Re5 {[%clk 0:00:29]} 41...
Rh4 {[%clk 0:00:04.6]} 42. Rg5 {[%clk 0:00:28.7]} 42... b4 {[%clk 0:00:03.8]}
43. Rg6 {[%clk 0:00:25.5]} 43... Kd5 {[%clk 0:00:03.7]} 44. h6 {[%clk
0:00:25.3]} 44... Rh2 {[%clk 0:00:04.1]} 45. Rg5+ {[%clk 0:00:25]} 45... Kd4
{[%clk 0:00:03.7]} 46. Rh5 {[%clk 0:00:24.5]} 46... Rg2 {[%clk 0:00:01.7]} 47.
h7 {[%clk 0:00:23.9]} 47... b3 {[%clk 0:00:02.6]} 48. h8=Q+ {[%clk 0:00:23]}
48... Ke4 {[%clk 0:00:03.3]} 49. Qe5+ {[%clk 0:00:22]} 49... Kf3 {[%clk
0:00:03.8]} 50. Rh3+ {[%clk 0:00:22.1]} 50... Kxg4 {[%clk 0:00:03.7]} 51. Qh5+
{[%clk 0:00:20.6]} 51... Kxf4 {[%clk 0:00:04]} 52. Qf3+ {[%clk 0:00:20.2]} 52...
Ke5 {[%clk 0:00:04.3]} 53. Qxg2 {[%clk 0:00:19.8]} 53... Kd6 {[%clk 0:00:04.1]}
54. cxb3 {[%clk 0:00:19.8]} 54... Kc7 {[%clk 0:00:05]} 55. bxc4 {[%clk
0:00:19.8]} 55... Kb6 {[%clk 0:00:05.9]} 56. Rb3+ {[%clk 0:00:18.1]} 56... Ka5
{[%clk 0:00:06.8]} 1-0

[Event "Late-Titled-Tuesday-Blitz-October-24-2023"]
[Site "Chess.com"]
[Date "2023.10.24"]
[Round "2"]
[White "BrandonJacobson"]
[Black "KATPAH"]
[Result "1/2-1/2"]
[WhiteElo "3029"]
[BlackElo "2638"]
[TimeControl "180+1"]
[EndTime "14:19:34 PDT"]
[Termination "Game drawn by repetition"]

1. Nf3 {[%clk 0:03:00.5]} 1... Nf6 {[%clk 0:02:59.9]} 2. c4 {[%clk 0:03:00.8]}
2... g6 {[%clk 0:03:00.4]} 3. Nc3 {[%clk 0:03:01]} 3... Bg7 {[%clk 0:03:01]} 4.
e3 {[%clk 0:03:01.3]} 4... d5 {[%clk 0:03:01.4]} 5. cxd5 {[%clk 0:02:54.6]} 5...
Nxd5 {[%clk 0:03:02.3]} 6. Qb3 {[%clk 0:02:53.3]} 6... Nxc3 {[%clk 0:03:00.8]}
7. bxc3 {[%clk 0:02:54.2]} 7... O-O {[%clk 0:03:01]} 8. d4 {[%clk 0:02:53.5]}
8... c5 {[%clk 0:03:00.6]} 9. Be2 {[%clk 0:02:50.6]} 9... cxd4 {[%clk
0:03:00.4]} 10. cxd4 {[%clk 0:02:51.5]} 10... Nc6 {[%clk 0:03:00.4]} 11. Bb2
{[%clk 0:02:38.8]} 11... Be6 {[%clk 0:02:57.7]} 12. Qa4 {[%clk 0:02:36.1]} 12...
Qa5+ {[%clk 0:02:54.9]} 13. Qxa5 {[%clk 0:02:36.1]} 13... Nxa5 {[%clk
0:02:55.8]} 14. O-O {[%clk 0:02:32.7]} 14... Rac8 {[%clk 0:02:55.6]} 15. Rfc1
{[%clk 0:02:30]} 15... Nc4 {[%clk 0:02:53.6]} 16. Bc3 {[%clk 0:02:26.3]} 16...
b5 {[%clk 0:02:48.5]} 17. a4 {[%clk 0:02:21.9]} 17... a6 {[%clk 0:02:42.3]} 18.
axb5 {[%clk 0:02:22]} 18... axb5 {[%clk 0:02:43.2]} 19. Bb4 {[%clk 0:02:22.6]}
19... Rc7 {[%clk 0:02:40.1]} 20. Ng5 {[%clk 0:01:59.1]} 20... Bd5 {[%clk
0:02:36]} 21. Rab1 {[%clk 0:01:40.7]} 21... Rfc8 {[%clk 0:02:32.1]} 22. Bc5
{[%clk 0:01:39.6]} 22... h6 {[%clk 0:01:52.4]} 23. Nf3 {[%clk 0:01:19.2]} 23...
e5 {[%clk 0:01:41.6]} 24. Rxb5 {[%clk 0:01:12.5]} 24... Nd6 {[%clk 0:01:41.9]}
25. Rbb1 {[%clk 0:00:50.5]} 25... exd4 {[%clk 0:01:41.6]} 26. exd4 {[%clk
0:00:25.5]} 26... Bxf3 {[%clk 0:01:38.7]} 27. Bxf3 {[%clk 0:00:25.8]} 27... Bxd4
{[%clk 0:01:38.8]} 28. Ba3 {[%clk 0:00:26.2]} 28... Rxc1+ {[%clk 0:01:33.5]} 29.
Rxc1 {[%clk 0:00:22.2]} 29... Rxc1+ {[%clk 0:01:33.5]} 30. Bxc1 {[%clk
0:00:23.1]} 30... h5 {[%clk 0:01:33]} 31. g3 {[%clk 0:00:20.3]} 31... Nc4 {[%clk
0:01:29.9]} 32. Kg2 {[%clk 0:00:20.1]} 32... Ne5 {[%clk 0:01:30]} 33. Bd5 {[%clk
0:00:20.5]} 33... Nd3 {[%clk 0:01:27]} 34. Ba3 {[%clk 0:00:12.7]} 34... Nxf2
{[%clk 0:01:25.6]} 35. Kf3 {[%clk 0:00:13.2]} 35... Ng4 {[%clk 0:01:25]} 36. h3
{[%clk 0:00:13.1]} 36... Nf6 {[%clk 0:01:25.4]} 37. Bc4 {[%clk 0:00:13.2]} 37...
Kg7 {[%clk 0:01:24]} 38. Be7 {[%clk 0:00:13.4]} 38... Nd7 {[%clk 0:01:21.7]} 39.
Ke4 {[%clk 0:00:13.4]} 39... Bf6 {[%clk 0:01:21.9]} 40. Bb4 {[%clk 0:00:13.5]}
40... Ne5 {[%clk 0:01:15.3]} 41. Be2 {[%clk 0:00:13]} 41... Nc6 {[%clk
0:01:15.2]} 42. Bd6 {[%clk 0:00:12.5]} 42... Be7 {[%clk 0:01:14.3]} 43. Bc7
{[%clk 0:00:13]} 43... Bd8 {[%clk 0:01:10]} 44. Bd6 {[%clk 0:00:12.5]} 44... Be7
{[%clk 0:01:10.3]} 45. Bc7 {[%clk 0:00:13.1]} 45... Bf6 {[%clk 0:01:07.2]} 46.
Bb6 {[%clk 0:00:12.1]} 46... Ne7 {[%clk 0:01:06.9]} 47. Bc4 {[%clk 0:00:11.9]}
47... Nf5 {[%clk 0:01:06.9]} 48. Bf2 {[%clk 0:00:12.2]} 48... Nd6+ {[%clk
0:01:07]} 49. Kd5 {[%clk 0:00:12.4]} 49... Nxc4 {[%clk 0:01:07.4]} 50. Kxc4
{[%clk 0:00:13.3]} 50... Be5 {[%clk 0:01:08]} 51. Kd5 {[%clk 0:00:13.8]} 51...
Kf6 {[%clk 0:01:08.2]} 52. Ke4 {[%clk 0:00:13.4]} 52... Ke6 {[%clk 0:01:07.8]}
53. g4 {[%clk 0:00:13.9]} 53... f5+ {[%clk 0:01:02.5]} 54. gxf5+ {[%clk
0:00:14.4]} 54... gxf5+ {[%clk 0:01:03.4]} 55. Kf3 {[%clk 0:00:15.3]} 55... Bc7
{[%clk 0:01:02.8]} 56. Bh4 {[%clk 0:00:15.8]} 56... Bd6 {[%clk 0:00:59.8]} 57.
Bf2 {[%clk 0:00:16.3]} 57... Kd5 {[%clk 0:00:59.2]} 58. Bh4 {[%clk 0:00:16.2]}
58... Ke5 {[%clk 0:00:58.1]} 59. Bg3+ {[%clk 0:00:16.3]} 59... Ke6 {[%clk
0:00:58.7]} 60. Bf2 {[%clk 0:00:15.7]} 60... Kf6 {[%clk 0:00:57.4]} 61. Bh4+
{[%clk 0:00:15.9]} 61... Kg6 {[%clk 0:00:57.5]} 62. Bf2 {[%clk 0:00:16.8]} 62...
Kg5 {[%clk 0:00:57.4]} 63. Be1 {[%clk 0:00:16.3]} 63... Be5 {[%clk 0:00:54.3]}
64. Bf2 {[%clk 0:00:16.5]} 64... Bc7 {[%clk 0:00:53.2]} 65. Be1 {[%clk 0:00:17]}
65... f4 {[%clk 0:00:53.6]} 66. Bf2 {[%clk 0:00:17]} 66... Kf5 {[%clk 0:00:54]}
67. Be1 {[%clk 0:00:17.3]} 67... Bb6 {[%clk 0:00:54.3]} 68. Bd2 {[%clk
0:00:16.3]} 68... Bc7 {[%clk 0:00:53.7]} 69. Be1 {[%clk 0:00:16.8]} 69... Be5
{[%clk 0:00:54.2]} 70. Bd2 {[%clk 0:00:17.3]} 70... Bd6 {[%clk 0:00:54]} 71. Be1
{[%clk 0:00:17.8]} 71... Kg5 {[%clk 0:00:54.6]} 72. Bf2 {[%clk 0:00:17.9]} 72...
Bb4 {[%clk 0:00:51.7]} 73. Ke4 {[%clk 0:00:18]} 73... Bd6 {[%clk 0:00:48.2]} 74.
Be1 {[%clk 0:00:17.7]} 74... Bb8 {[%clk 0:00:46.7]} 75. Kf3 {[%clk 0:00:17.7]}
75... Kf5 {[%clk 0:00:45.8]} 76. Bc3 {[%clk 0:00:18.3]} 76... Bc7 {[%clk
0:00:44.1]} 77. Be1 {[%clk 0:00:18.9]} 1/2-1/2

[Event "Late-Titled-Tuesday-Blitz-October-24-2023"]
[Site "Chess.com"]
[Date "2023.10.24"]
[Round "2"]
[White "Miguelitro69"]
[Black "Triumphmate"]
[Result "0-1"]
[WhiteElo "2305"]
[BlackElo "2519"]
[TimeControl "180+1"]
[EndTime "14:19:35 PDT"]
[Termination "Triumphmate won on time"]

1. e4 {[%clk 0:03:00.9]} 1... d5 {[%clk 0:02:53.4]} 2. exd5 {[%clk 0:03:00.5]}
2... Nf6 {[%clk 0:02:53.8]} 3. Bb5+ {[%clk 0:02:59.7]} 3... c6 {[%clk
0:02:53.2]} 4. dxc6 {[%clk 0:02:58.9]} 4... Nxc6 {[%clk 0:02:54.1]} 5. Nf3
{[%clk 0:02:58.1]} 5... Bg4 {[%clk 0:02:54.7]} 6. Qe2 {[%clk 0:02:55.9]} 6... e6
{[%clk 0:02:55]} 7. h3 {[%clk 0:02:55.3]} 7... Bh5 {[%clk 0:02:55.1]} 8. Nc3
{[%clk 0:02:54.9]} 8... Bd6 {[%clk 0:02:55]} 9. d3 {[%clk 0:02:54.5]} 9... O-O
{[%clk 0:02:52.2]} 10. Bxc6 {[%clk 0:02:54.5]} 10... bxc6 {[%clk 0:02:53.1]} 11.
Ne4 {[%clk 0:02:54.4]} 11... Be7 {[%clk 0:02:52.6]} 12. Ng3 {[%clk 0:02:52.5]}
12... Bg6 {[%clk 0:02:51.1]} 13. Ne5 {[%clk 0:02:52]} 13... Bd6 {[%clk 0:02:48]}
14. Nxg6 {[%clk 0:02:51.3]} 14... hxg6 {[%clk 0:02:48.6]} 15. O-O {[%clk
0:02:49.2]} 15... Rb8 {[%clk 0:02:45.8]} 16. Ne4 {[%clk 0:02:47.9]} 16... Be7
{[%clk 0:02:43.7]} 17. b3 {[%clk 0:02:43.8]} 17... Qd4 {[%clk 0:02:42.6]} 18.
Be3 {[%clk 0:02:41.9]} 18... Qb2 {[%clk 0:02:41.4]} 19. Rfb1 {[%clk 0:02:33.9]}
19... Qa3 {[%clk 0:02:41.5]} 20. Nd2 {[%clk 0:02:24]} 20... Nd5 {[%clk
0:02:40.4]} 21. Nc4 {[%clk 0:02:20.7]} 21... Qa6 {[%clk 0:02:41]} 22. Bd2 {[%clk
0:02:18]} 22... Bf6 {[%clk 0:02:40.8]} 23. Nb2 {[%clk 0:02:14.9]} 23... Nc3
{[%clk 0:02:38.5]} 24. Bxc3 {[%clk 0:02:12.7]} 24... Bxc3 {[%clk 0:02:39.4]} 25.
a4 {[%clk 0:02:12.8]} 25... Rfd8 {[%clk 0:02:25.6]} 26. Ra2 {[%clk 0:02:09.4]}
26... Qa5 {[%clk 0:02:21.9]} 27. Nc4 {[%clk 0:02:07.2]} 27... Qg5 {[%clk
0:02:18.5]} 28. a5 {[%clk 0:02:01.2]} 28... a6 {[%clk 0:02:17.8]} 29. Ra4 {[%clk
0:02:00.6]} 29... Rb5 {[%clk 0:02:17.5]} 30. Qf3 {[%clk 0:01:51.9]} 30... Rdd5
{[%clk 0:02:14.4]} 31. Nb6 {[%clk 0:01:43.8]} 31... Rf5 {[%clk 0:02:01.4]} 32.
Qe3 {[%clk 0:01:36.2]} 32... Qxe3 {[%clk 0:01:52.9]} 33. fxe3 {[%clk 0:01:36.3]}
33... Bxa5 {[%clk 0:01:53.6]} 34. Nc4 {[%clk 0:01:34.2]} 34... Rg5 {[%clk
0:01:51.3]} 35. Rf1 {[%clk 0:01:19.5]} 35... f6 {[%clk 0:01:49.9]} 36. Rf3
{[%clk 0:01:14]} 36... Kh7 {[%clk 0:01:50.3]} 37. Kf2 {[%clk 0:01:14]} 37... Kh6
{[%clk 0:01:44.6]} 38. h4 {[%clk 0:01:13.7]} 38... Rh5 {[%clk 0:01:44.3]} 39. g3
{[%clk 0:01:12]} 39... g5 {[%clk 0:01:39.3]} 40. g4 {[%clk 0:01:10.3]} 40...
Rxh4 {[%clk 0:01:37.3]} 41. Rxa5 {[%clk 0:01:05.7]} 41... Rh2+ {[%clk
0:01:37.1]} 42. Kg3 {[%clk 0:01:04]} 42... Rxc2 {[%clk 0:01:38]} 43. Rxa6 {[%clk
0:00:49.3]} 43... Rxb3 {[%clk 0:01:38.3]} 44. Rxc6 {[%clk 0:00:48.2]} 44... Rxd3
{[%clk 0:01:38.9]} 45. Ne5 {[%clk 0:00:43.4]} 45... Rxc6 {[%clk 0:01:35.9]} 46.
Nxc6 {[%clk 0:00:44.3]} 46... e5 {[%clk 0:01:35.3]} 47. e4 {[%clk 0:00:41.9]}
47... Rd1 {[%clk 0:01:32.1]} 48. Rc3 {[%clk 0:00:40.9]} 48... Re1 {[%clk
0:01:30.1]} 49. Kf3 {[%clk 0:00:35.2]} 49... Rf1+ {[%clk 0:01:30.7]} 50. Ke3
{[%clk 0:00:30.9]} 50... Rf4 {[%clk 0:01:31]} 51. Ne7 {[%clk 0:00:31.2]} 51...
Rxg4 {[%clk 0:01:30.4]} 52. Nf5+ {[%clk 0:00:31.3]} 52... Kg6 {[%clk 0:01:28.5]}
53. Rc7 {[%clk 0:00:29.2]} 53... Rg1 {[%clk 0:01:24.5]} 54. Rxg7+ {[%clk
0:00:27.4]} 54... Kh5 {[%clk 0:01:25.1]} 55. Rh7+ {[%clk 0:00:25.8]} 55... Kg4
{[%clk 0:01:25.6]} 56. Rh6 {[%clk 0:00:22.3]} 56... Re1+ {[%clk 0:01:25.9]} 57.
Kd3 {[%clk 0:00:21.3]} 57... Kf4 {[%clk 0:01:24.3]} 58. Rxf6 {[%clk 0:00:18.3]}
58... Rd1+ {[%clk 0:01:24.8]} 59. Ke2 {[%clk 0:00:17.1]} 59... Ra1 {[%clk
0:01:21.6]} 60. Nd6+ {[%clk 0:00:15.2]} 60... Kg3 {[%clk 0:01:22.2]} 61. Rf2
{[%clk 0:00:15.2]} 61... Ra2+ {[%clk 0:01:21.9]} 62. Ke3 {[%clk 0:00:14.9]}
62... Rxf2 {[%clk 0:01:22.8]} 63. Nf5+ {[%clk 0:00:14.7]} 63... Kg2 {[%clk
0:01:15]} 64. Nh6 {[%clk 0:00:15.6]} 64... Rf3+ {[%clk 0:01:14.2]} 65. Ke2
{[%clk 0:00:15.4]} 65... Ra3 {[%clk 0:01:14.9]} 66. Ng4 {[%clk 0:00:15.1]} 66...
Kh3 {[%clk 0:01:14.3]} 67. Nxe5 {[%clk 0:00:15.3]} 67... g4 {[%clk 0:01:14.7]}
68. Ng6 {[%clk 0:00:15.3]} 68... g3 {[%clk 0:01:15.3]} 69. e5 {[%clk 0:00:14.9]}
69... Kg4 {[%clk 0:01:13]} 70. e6 {[%clk 0:00:14.2]} 70... Ra6 {[%clk
0:01:12.2]} 71. e7 {[%clk 0:00:12.7]} 71... Re6+ {[%clk 0:01:12.6]} 72. Kf1
{[%clk 0:00:12.8]} 72... Kf3 {[%clk 0:01:10.6]} 73. Nh4+ {[%clk 0:00:09.7]}
73... Kg4 {[%clk 0:01:10.8]} 74. Ng6 {[%clk 0:00:09.8]} 74... Kg5 {[%clk
0:01:11.1]} 75. Nf8 {[%clk 0:00:04]} 75... Rxe7 {[%clk 0:01:08.5]} 76. Kg2
{[%clk 0:00:04.5]} 76... Kg4 {[%clk 0:01:06.9]} 77. Ng6 {[%clk 0:00:04.1]} 77...
Re2+ {[%clk 0:01:07]} 78. Kf1 {[%clk 0:00:04.5]} 78... Ra2 {[%clk 0:01:07.8]}
79. Ne5+ {[%clk 0:00:04.1]} 79... Kh3 {[%clk 0:01:08.5]} 80. Nf3 {[%clk
0:00:03.4]} 80... Rf2+ {[%clk 0:01:07.5]} 81. Kg1 {[%clk 0:00:01.4]} 81... Rxf3
{[%clk 0:01:08.4]} 0-1